fUSD/lending_fUSD_20240109
["ID","MTS","AMOUNT","RATE_DAILY","PERIOD"]
[310910432,1704814329881,-931.93,0.00041506,30]
[310910433,1704814329890,-552.3,0.00041506,30]
[310910434,1704814329899,-1038.62,0.00041506,30]
[310910435,1704814329908,-500.0,0.00041506,30]
[310910436,1704814329917,-1121.37,0.00041506,30]
[310910437,1704814329926,-3941.88,0.00041506,30]
[310910438,1704814329935,-1704.41,0.00041506,30]
[310910439,1704814329945,-1031.35,0.00041506,30]
[310910440,1704814329954,-600.61,0.00041506,30]
[310910441,1704814329963,-672.4,0.00041506,30]
[310910442,1704814329972,-1793.95,0.00041506,30]
[310910443,1704814329982,-500.0,0.00041506,30]
[310910444,1704814329992,-626.73,0.00041506,30]
[310910445,1704814330001,-830.11,0.00041506,30]
[310910446,1704814330010,-1939.09,0.00041506,30]
[310910447,1704814330019,-500.0,0.00041506,30]
[310910448,1704814330029,-500.0,0.00041506,30]
[310910449,1704814330038,-1992.23,0.00041506,30]
[310910450,1704814330048,-1672.06,0.00041506,30]
[310910451,1704814330057,-500.0,0.00041506,30]
[310910452,1704814330067,-1049.82,0.00041506,30]
[310910453,1704814330076,-832.6,0.00041506,30]
[310910454,1704814330086,-592.07,0.00041506,30]
[310910455,1704814330095,-1154.73,0.00041506,30]
[310910456,1704814330104,-617.46,0.00041506,30]
[310910457,1704814330113,-500.0,0.00041506,30]
[310910458,1704814330122,-2019.49,0.00041506,30]
[310910459,1704814330131,-500.0,0.00041506,30]
[310910460,1704814330140,-623.61,0.00041506,30]
[310910461,1704814330149,-1575.33,0.00041506,30]
[310910462,1704814330158,-500.0,0.00041506,30]
[310910463,1704814330168,-500.0,0.00041506,30]
[310910464,1704814330177,-500.0,0.00041506,30]
[310910465,1704814330186,-1208.87,0.00041506,30]
[310910466,1704814330195,-589.72,0.00041506,30]
[310910467,1704814330204,-500.0,0.00041506,30]
[310910468,1704814330213,-1100.7,0.00041506,30]
[310910469,1704814330222,-500.0,0.00041506,30]
[310910470,1704814330231,-574.55,0.00041506,30]
[310910471,1704814330240,-1443.2,0.00041506,30]
[310910472,1704814330250,-1118.67,0.00041506,30]
[310910473,1704814330259,-500.0,0.00041506,30]
[310910474,1704814330268,-1567.43,0.00041506,30]
[310910475,1704814330277,-500.0,0.00041506,30]
[310910476,1704814330287,-538.72,0.00041506,30]
[310910477,1704814330296,-500.0,0.00041506,30]
[310910478,1704814330305,-500.0,0.00041506,30]
[310910479,1704814330315,-615.94,0.00041506,30]
[310910480,1704814330324,-500.0,0.00041506,30]
[310910481,1704814330334,-1835.01,0.00041506,30]
[310910482,1704814330343,-500.0,0.00041506,30]
[310910483,1704814330352,-500.0,0.00041506,30]
[310910484,1704814330361,-835.4,0.00041506,30]
[310910485,1704814330372,-500.0,0.00041506,30]
[310910486,1704814330388,-500.0,0.00041506,30]
[310910487,1704814330403,-500.0,0.00041506,30]
[310910488,1704814330417,-2298.01,0.00041506,30]
[310910489,1704814330428,-870.0,0.00041506,30]
[310910490,1704814330443,-539.47,0.00041506,30]
[310910491,1704814330456,-1150.5,0.00041506,30]
[310910492,1704814330472,-1310.11,0.00041506,30]
[310910493,1704814330485,-500.0,0.00041506,30]
[310910494,1704814330498,-500.0,0.00041506,30]
[310910495,1704814330510,-1400.49,0.00041506,30]
[310910496,1704814330524,-1360.64,0.00041506,30]
[310910497,1704814330538,-500.0,0.00041506,30]
[310910498,1704814330551,-923.19,0.00041506,30]
[310910499,1704814330566,-1204.31,0.00041506,30]
[310910500,1704814330578,-771.54,0.00041506,30]
[310910501,1704814330592,-1160.23,0.00041506,30]
[310910502,1704814330607,-2584.55,0.00041506,30]
[310910503,1704814330621,-500.0,0.00041506,30]
[310910504,1704814330636,-500.0,0.00041506,30]
[310910505,1704814330650,-1315.98,0.00041506,30]
[310910506,1704814330665,-500.0,0.00041506,10]
[310910507,1704814330680,-1972.08,0.00041506,30]
[310910508,1704814330695,-1668.26,0.00041506,30]
[310910509,1704814330710,-1439.0,0.00041506,30]
[310910510,1704814330722,-1429.35,0.00041506,30]
[310910511,1704814330732,-2461.03,0.00041506,30]
[310910512,1704814330743,-946.78,0.00041506,30]
[310910513,1704814330758,-500.0,0.00041506,30]
[310910514,1704814330770,-500.0,0.00041506,4]
[310910515,1704814330784,-713.51,0.00041506,30]
[310910516,1704814330796,-1659.56,0.00041506,30]
[310910517,1704814330808,-500.0,0.00041506,30]
[310910518,1704814330825,-500.0,0.00041506,30]
[310910519,1704814330836,-500.0,0.00041506,30]
[310910520,1704814330848,-500.0,0.00041506,30]
[310910521,1704814330860,-500.0,0.00041506,30]
[310910522,1704814330872,-500.0,0.00041506,30]
[310910523,1704814330885,-803.78,0.00041506,30]
[310910524,1704814330896,-500.0,0.00041506,30]
[310910525,1704814330910,-500.0,0.00041506,30]
[310910526,1704814330923,-500.0,0.00041506,30]
[310910527,1704814330935,-614.42,0.00041506,30]
[310910528,1704814330947,-1000.0,0.00041506,7]
[310910529,1704814330960,-500.0,0.00041506,30]
[310910530,1704814330972,-800.95,0.00041506,30]
[310910531,1704814330985,-1758.64,0.00041506,30]
[310910532,1704814330997,-500.0,0.00041506,30]
[310910533,1704814331009,-500.0,0.00041506,30]
[310910534,1704814331021,-1778.42,0.00041506,30]
[310910535,1704814331033,-848.11,0.00041506,30]
[310910536,1704814331045,-3407.77,0.00041506,30]
[310910537,1704814331057,-2138.28,0.00041506,30]
[310910538,1704814331069,-500.0,0.00041506,30]
[310910539,1704814331082,-500.0,0.00041506,30]
[310910540,1704814331095,-500.0,0.00041506,30]
[310910541,1704814331107,-186.49740937,0.00041506,30]
[310910542,1704814331120,-886.41,0.00041506,30]
[310910543,1704814331132,-500.0,0.00041506,2]
[310910544,1704814331146,-500.0,0.00041506,30]
[310910545,1704814331158,-1677.31,0.00041506,30]
[310910546,1704814331172,-500.0,0.00041506,30]
[310910547,1704814331184,-550.98646277,0.00041506,30]
[310910548,1704814331196,-500.0,0.00041506,30]
[310910549,1704814331209,-500.0,0.00041506,30]
[310910550,1704814331222,-1138.73,0.00041506,30]
[310910551,1704814331235,-3178.9,0.00041506,30]
[310910552,1704814331247,-2732.04,0.00041506,30]
[310910553,1704814331259,-500.0,0.00041506,30]
[310910554,1704814331272,-770.65,0.00041506,30]
[310910555,1704814331284,-500.0,0.00041506,30]
[310910556,1704814331297,-2194.76,0.00041506,30]
[310910557,1704814331310,-500.0,0.00041506,30]
[310910558,1704814331322,-1008.53,0.00041506,30]
[310910559,1704814331335,-1048.75,0.00041506,30]
[310910560,1704814331347,-500.0,0.00041506,30]
[310910561,1704814331360,-404.47261126,0.00041506,30]
[310910562,1704814331372,-1329.34,0.00041506,30]
[310910563,1704814331384,-2754.0,0.00041506,30]
[310910564,1704814331397,-500.0,0.00041506,30]
[310910565,1704814331410,-500.0,0.00041506,30]
[310910566,1704814331423,-1507.83,0.00041506,30]
[310910567,1704814331436,-500.0,0.00041506,30]
[310910568,1704814331449,-680.5,0.00041506,30]
[310910569,1704814331462,-500.0,0.00041506,30]
[310910570,1704814331475,-634.38,0.00041506,30]
[310910571,1704814331488,-2700.24,0.00041506,30]
[310910572,1704814331501,-500.0,0.00041506,30]
[310910573,1704814331514,-1356.37,0.00041506,30]
[310910574,1704814331526,-500.0,0.00041506,30]
[310910575,1704814331539,-500.0,0.00041506,30]
[310910576,1704814331551,-500.0,0.00041506,30]
[310910577,1704814331563,-651.64,0.00041506,30]
[310910578,1704814331576,-500.0,0.00041506,30]
[310910579,1704814331590,-500.0,0.00041506,30]
[310910580,1704814331603,-500.0,0.00041506,30]
[310910581,1704814331617,-952.35,0.00041506,30]
[310910582,1704814331630,-3257.97,0.00041506,120]
[310910583,1704814331643,-500.0,0.00041506,30]
[310910584,1704814331655,-500.0,0.00041506,30]
[310910585,1704814331667,-1810.23,0.00041506,30]
[310910586,1704814331679,-500.0,0.00041506,30]
[310910587,1704814331691,-587.58,0.00041506,30]
[310910588,1704814331703,-625.64,0.00041506,30]
[310910589,1704814331715,-676.46,0.00041506,30]
[310910590,1704814331727,-500.0,0.00041506,30]
[310910591,1704814331739,-500.0,0.00041506,30]
[310910592,1704814331752,-1006.7,0.00041506,30]
[310910593,1704814331764,-500.0,0.00041506,30]
[310910594,1704814331777,-500.0,0.00041506,30]
[310910595,1704814331788,-1236.35,0.00041506,30]
[310910596,1704814331802,-1037.96,0.00041506,30]
[310910597,1704814331814,-1919.15,0.00041506,30]
[310910598,1704814331828,-500.0,0.00041506,30]
[310910599,1704814331842,-500.0,0.00041506,30]
[310910600,1704814331853,-500.0,0.00041506,30]
[310910601,1704814331866,-1578.69,0.00041506,30]
[310910602,1704814331876,-500.0,0.00041506,30]
[310910603,1704814331888,-1865.73,0.00041506,30]
[310910604,1704814331899,-500.0,0.00041506,30]
[310910605,1704814331911,-1362.93,0.00041506,30]
[310910606,1704814331923,-2456.66,0.00041506,30]
[310910607,1704814331935,-1537.84,0.00041506,30]
[310910608,1704814331948,-500.0,0.00041506,30]
[310910609,1704814331960,-500.0,0.00041506,30]
[310910610,1704814331972,-589.31,0.00041506,30]
[310910611,1704814331983,-500.0,0.00041506,30]
[310910612,1704814331994,-1710.93,0.00041506,30]
[310910613,1704814332006,-788.83,0.00041506,30]
[310910614,1704814332017,-500.0,0.00041506,30]
[310910615,1704814332028,-2756.46,0.00041506,30]
[310910616,1704814332039,-2705.23,0.00041506,30]
[310910617,1704814332050,-2588.77,0.00041506,30]
[310910618,1704814332062,-500.0,0.00041506,30]
[310910619,1704814332073,-946.47,0.00041506,30]
[310910620,1704814332088,-500.0,0.00041506,30]
[310910621,1704814332100,-500.0,0.00041506,30]
[310910622,1704814332111,-500.0,0.00041506,30]
[310910623,1704814332123,-500.0,0.00041506,30]
[310910624,1704814332134,-500.0,0.00041506,30]
[310910625,1704814332146,-825.0,0.00041506,30]
[310910626,1704814332158,-500.0,0.00041506,30]
[310910627,1704814332169,-500.0,0.00041506,30]
[310910628,1704814332181,-821.89,0.00041506,30]
[310910629,1704814332193,-1714.7,0.00041506,30]
[310910630,1704814332206,-987.47,0.00041506,30]
[310910631,1704814332218,-12516.53,0.00041506,30]
[310910632,1704814332230,-2523.55,0.00041506,30]
[310910633,1704814332243,-500.0,0.00041506,30]
[310910634,1704814332255,-1027.68,0.00041506,30]
[310910635,1704814332266,-1474.62,0.00041506,30]
[310910636,1704814332278,-1217.97,0.00041506,30]
[310910637,1704814332290,-500.0,0.00041506,30]
[310910638,1704814332301,-500.0,0.00041506,30]
[310910639,1704814332314,-1454.57,0.00041506,30]
[310910640,1704814332325,-500.0,0.00041506,5]
[310910641,1704814332337,-1048.97,0.00041506,30]
[310910642,1704814332349,-2127.96,0.00041506,30]
[310910643,1704814332361,-500.0,0.00041506,30]
[310910644,1704814332371,-1299.93,0.00041506,30]
[310910645,1704814332384,-500.0,0.00041506,30]
[310910646,1704814332395,-2596.84,0.00041506,30]
[310910647,1704814332407,-500.0,0.00041506,30]
[310910648,1704814332419,-1950.17,0.00041506,30]
[310910649,1704814332430,-725.04,0.00041506,30]
[310910650,1704814332442,-2106.17,0.00041506,30]
[310910651,1704814332454,-500.0,0.00041506,30]
[310910652,1704814332465,-794.41,0.00041506,30]
[310910653,1704814332476,-3285.45,0.00041506,30]
[310910654,1704814332488,-1542.09,0.00041506,7]
[310910655,1704814332499,-500.0,0.00041506,30]
[310910656,1704814332510,-2655.79,0.00041506,30]
[310910657,1704814332522,-7119.89,0.00041506,30]
[310910658,1704814332534,-650.25,0.00041506,30]
[310910659,1704814332545,-500.0,0.00041506,30]
[310910660,1704814332556,-1087.65,0.00041506,30]
[310910661,1704814332568,-500.0,0.00041506,30]
[310910662,1704814332581,-913.65,0.00041506,30]
[310910663,1704814332592,-977.92,0.00041506,30]
[310910664,1704814332603,-2362.44,0.00041506,30]
[310910665,1704814332615,-576.88,0.00041506,30]
[310910666,1704814332627,-1112.82,0.00041506,30]
[310910667,1704814332638,-1726.68,0.00041506,30]
[310910668,1704814332650,-3996.86,0.00041506,30]
[310910669,1704814332662,-2396.9,0.00041506,30]
[310910670,1704814332674,-2486.71,0.00041506,30]
[310910671,1704814332685,-500.0,0.00041506,30]
[310910672,1704814332698,-500.0,0.00041506,30]
[310910673,1704814332709,-3045.65,0.00041506,30]
[310910674,1704814332722,-500.0,0.00041506,30]
[310910675,1704814332734,-502.99,0.00041506,30]
[310910676,1704814332747,-4277.01,0.00041506,30]
[310910677,1704814332759,-2246.6,0.00041506,30]
[310910678,1704814332771,-1448.82,0.00041506,2]
[310910679,1704814332782,-1043.39,0.00041506,30]
[310910680,1704814332794,-502.73,0.00041506,30]
[310910681,1704814332806,-534.65,0.00041506,30]
[310910682,1704814332821,-891.36,0.00041506,30]
[310910683,1704814332837,-500.0,0.00041506,30]
[310910684,1704814332849,-1353.62,0.00041506,30]
[310910685,1704814332861,-2632.89,0.00041506,30]
[310910686,1704814332873,-1838.21,0.00041506,30]
[310910687,1704814332885,-1576.53,0.00041506,30]
[310910688,1704814332897,-1105.49,0.00041506,30]
[310910689,1704814332908,-862.54,0.00041506,30]
[310910690,1704814332920,-1537.91,0.00041506,30]
[310910691,1704814332931,-500.0,0.00041506,30]
[310910692,1704814332942,-678.18,0.00041506,30]
[310910693,1704814332954,-500.0,0.00041506,30]
[310910694,1704814332965,-500.0,0.00041506,30]
[310910695,1704814332977,-1574.3,0.00041506,30]
[310910696,1704814332988,-4265.52,0.00041506,30]
[310910697,1704814332999,-3580.78,0.00041506,30]
[310910698,1704814333010,-726.93,0.00041506,30]
[310910699,1704814333021,-10916.38,0.00041506,30]
[310910700,1704814333032,-500.0,0.00041506,30]
[310910701,1704814333044,-500.0,0.00041506,30]
[310910702,1704814333055,-1982.37,0.00041506,30]
[310910703,1704814333065,-572.88069639,0.00041506,30]
[310910704,1704814333079,-1469.95,0.00041506,30]
[310910705,1704814333090,-2986.22,0.00041506,30]
[310910706,1704814333102,-1699.32,0.00041506,30]
[310910707,1704814333113,-3068.15,0.00041506,30]
[310910708,1704814333125,-686.48,0.00041506,30]
[310910709,1704814333137,-1390.68,0.00041506,30]
[310910710,1704814333149,-10247.09,0.00041506,30]
[310910711,1704814333160,-500.0,0.00041506,30]
[310910712,1704814333171,-1223.53,0.00041506,30]
[310910713,1704814333183,-1685.22,0.00041506,30]
[310910714,1704814333194,-500.0,0.00041506,30]
[310910715,1704814333207,-500.0,0.00041506,30]
[310910716,1704814333219,-500.0,0.00041506,30]
[310910717,1704814333232,-500.0,0.00041506,30]
[310910718,1704814333244,-1149.96,0.00041506,30]
[310910719,1704814333256,-6253.79,0.00041506,30]
[310910720,1704814333269,-500.0,0.00041506,30]
[310910721,1704814333281,-989.82,0.00041506,30]
[310910722,1704814333293,-500.0,0.00041506,30]
[310910723,1704814333304,-2365.66,0.00041506,30]
[310910724,1704814333315,-1963.83,0.00041506,30]
[310910725,1704814333328,-701.0,0.00041506,30]
[310910726,1704814333340,-705.46,0.00041506,30]
[310910727,1704814333351,-507.62577476,0.00041506,30]
[310910728,1704814333362,-7334.72,0.00041506,30]
[310910729,1704814333375,-500.0,0.00041506,30]
[310910730,1704814333386,-2159.55,0.00041506,30]
[310910731,1704814333397,-7619.16,0.00041506,30]
[310910732,1704814333409,-7759.7,0.00041506,30]
[310910733,1704814333421,-500.0,0.00041506,30]
[310910734,1704814333433,-1725.58,0.00041506,30]
[310910735,1704814333446,-1264.61,0.00041506,30]
[310910736,1704814333458,-2266.7,0.00041506,30]
[310910737,1704814333469,-500.0,0.00041506,30]
[310910738,1704814333481,-914.32,0.00041506,30]
[310910739,1704814333492,-500.0,0.00041506,30]
[310910740,1704814333503,-689.51,0.00041506,30]
[310910741,1704814333515,-500.0,0.00041506,30]
[310910742,1704814333527,-6777.19,0.00041506,30]
[310910743,1704814333539,-1573.82,0.00041506,30]
[310910744,1704814333551,-500.0,0.00041506,30]
[310910745,1704814333562,-4036.91,0.00041506,30]
[310910746,1704814333574,-3417.76,0.00041506,30]
[310910747,1704814333588,-2670.87,0.00041506,30]
[310910748,1704814333599,-649.74,0.00041506,30]
[310910749,1704814333611,-1768.69,0.00041506,30]
[310910750,1704814333623,-2656.66,0.00041506,30]
[310910751,1704814333635,-500.0,0.00041506,30]
[310910752,1704814333646,-500.0,0.00041506,30]
[310910753,1704814333658,-3624.89,0.00041506,30]
[310910754,1704814333670,-891.81,0.00041506,30]
[310910755,1704814333682,-1969.21,0.00041506,30]
[310910756,1704814333693,-4760.81,0.00041506,30]
[310910757,1704814333704,-1849.48,0.00041506,30]
[310910758,1704814333716,-2591.36,0.00041506,30]
[310910759,1704814333727,-1829.62,0.00041506,30]
[310910760,1704814333739,-507.02,0.00041506,30]
[310910761,1704814333750,-1545.72,0.00041506,30]
[310910762,1704814333762,-1282.15,0.00041506,30]
[310910763,1704814333772,-820.1,0.00041506,30]
[310910764,1704814333783,-3330.89,0.00041506,30]
[310910765,1704814333795,-7125.45,0.00041506,30]
[310910766,1704814333810,-1041.48,0.00041506,30]
[310910767,1704814333821,-500.0,0.00041506,30]
[310910768,1704814333837,-500.0,0.00041506,30]
[310910769,1704814333849,-4552.78,0.00041506,30]
[310910770,1704814333860,-25135.11,0.00041506,30]
[310910771,1704814333872,-594.34734128,0.00041506,30]
[310910772,1704814333884,-3134.7,0.00041506,30]
[310910773,1704814333897,-18448.99,0.00041506,30]
[310910774,1704814333909,-2000.28,0.00041506,30]
[310910775,1704814333921,-500.0,0.00041506,30]
[310910776,1704814333933,-500.0,0.00041506,30]
[310910777,1704814333945,-500.0,0.00041506,30]
[310910778,1704814333957,-500.0,0.00041506,30]
[310910779,1704814333969,-745.36,0.00041506,30]
[310910780,1704814333981,-13835.28,0.00041506,30]
[310910781,1704814333992,-1655.6,0.00041506,30]
[310910782,1704814334004,-1353.98,0.00041506,30]
[310910783,1704814334015,-2446.36,0.00041506,30]
[310910784,1704814334028,-19704.83,0.00041506,30]
[310910785,1704814334039,-3526.58,0.00041506,30]
[310910786,1704814334051,-11755.41,0.00041506,30]
[310910787,1704814334062,-2085.11,0.00041506,30]
[310910788,1704814334074,-500.0,0.00041506,30]
[310910789,1704814334088,-975.77,0.00041506,30]
[310910790,1704814334107,-500.0,0.00041506,7]
[310910791,1704814334118,-5456.33,0.00041506,30]
[310910792,1704814334129,-703.77,0.00041506,30]
[310910793,1704814334140,-500.0,0.00041506,30]
[310910794,1704814334152,-578.03,0.00041506,30]
[310910795,1704814334163,-18929.09,0.00041506,30]
[310910796,1704814334175,-91700.44,0.00041506,30]
[310910797,1704814334186,-500.0,0.00041506,30]
[310910798,1704814334198,-500.0,0.00041506,30]
[310910799,1704814334210,-610.44,0.00041506,30]
[310910800,1704814334222,-4955.76,0.00041506,30]
[310910801,1704814334233,-11389.4,0.00041506,30]
[310910802,1704814334246,-685.04,0.00041506,30]
[310910803,1704814334258,-5644.78,0.00041506,30]
[310910804,1704814334269,-1534.89,0.00041506,30]
[310910805,1704814334281,-1643.59,0.00041506,30]
[310910806,1704814334293,-1919.34,0.00041506,30]
[310910807,1704814334305,-500.0,0.00041506,30]
[310910808,1704814334317,-1207.82,0.00041506,30]
[310910809,1704814334328,-3051.16,0.00041506,30]
[310910810,1704814334340,-2205.97,0.00041506,30]
[310910811,1704814334353,-500.0,0.00041506,30]
[310910812,1704814334364,-500.0,0.00041506,30]
[310910813,1704814334376,-500.0,0.00041506,30]
[310910814,1704814334388,-4326.12,0.00041506,30]
[310910815,1704814334399,-23372.75,0.00041506,30]
[310910816,1704814334411,-4650.3,0.00041506,30]
[310910817,1704814334423,-1706.69,0.00041506,30]
[310910818,1704814334434,-3602.98,0.00041506,30]
[310910819,1704814335062,-500.0,0.00041506,30]
[310910820,1704814335082,-500.0,0.00041506,30]
[310910821,1704814335092,-948.23,0.00041506,30]
[310910822,1704814335101,-1484.9,0.00041506,30]
[310910823,1704814335111,-625.91,0.00041506,30]
[310910824,1704814335120,-4750.61,0.00041506,30]
[310910825,1704814335130,-677.56,0.00041506,30]
[310910826,1704814335139,-570.53,0.00041506,30]
[310910827,1704814335149,-753.01,0.00041506,30]
[310910828,1704814335159,-8509.95,0.00041506,30]
[310910829,1704814335169,-1014.72,0.00041506,30]
[310910830,1704814335180,-1075.83,0.00041506,30]
[310910831,1704814335189,-10401.23,0.00041506,30]
[310910832,1704814335200,-500.0,0.00041506,30]
[310910833,1704814335210,-1988.56,0.00041506,30]
[310910834,1704814335220,-2247.55,0.00041506,30]
[310910835,1704814335230,-1760.09,0.00041506,30]
[310910836,1704814335240,-1917.59,0.00041506,30]
[310910837,1704814335250,-6630.63,0.00041506,30]
[310910838,1704814335261,-6677.97,0.00041506,30]
[310910839,1704814335271,-912.61,0.00041506,30]
[310910840,1704814335281,-500.0,0.00041506,30]
[310910841,1704814335291,-7738.46,0.00041506,30]
[310910842,1704814335301,-500.0,0.00041506,30]
[310910843,1704814335311,-500.0,0.00041506,30]
[310910844,1704814335320,-14437.73,0.00041506,30]
[310910845,1704814335330,-839.67,0.00041506,30]
[310910846,1704814335340,-1402.57,0.00041506,30]
[310910847,1704814335351,-814.2,0.00041506,30]
[310910848,1704814335361,-2196.22,0.00041506,30]
[310910849,1704814335371,-500.0,0.00041506,30]
[310910850,1704814335382,-209.75974676,0.00041506,30]
[310910851,1704814335392,-36009.51,0.00041506,30]
[310910852,1704814335402,-2863.88,0.00041506,30]
[310910853,1704814335412,-12556.6,0.00041506,30]
[310910854,1704814335422,-3304.26,0.00041506,30]
[310910855,1704814335432,-2592.03,0.00041506,30]
[310910856,1704814335442,-2705.09,0.00041506,30]
[310910857,1704814335453,-500.0,0.00041506,30]
[310910858,1704814335464,-500.0,0.00041506,30]
[310910859,1704814335474,-500.0,0.00041506,30]
[310910860,1704814335484,-2751.1,0.00041506,30]
[310910861,1704814335495,-2400.96,0.00041506,30]
[310910862,1704814335505,-4406.91,0.00041506,30]
[310910863,1704814335515,-6577.65,0.00041506,30]
[310910864,1704814335525,-1297.88,0.00041506,30]
[310910865,1704814335534,-571.22,0.00041506,30]
[310910866,1704814335544,-3403.92,0.00041506,30]
[310910867,1704814335554,-500.0,0.00041506,30]
[310910868,1704814335564,-3033.25,0.00041506,30]
[310910869,1704814335574,-952.63,0.00041506,30]
[310910870,1704814335585,-1721.02,0.00041506,30]
[310910871,1704814335595,-836.3,0.00041506,7]
[310910872,1704814335605,-7028.61,0.00041506,30]
[310910873,1704814335615,-500.0,0.00041506,30]
[310910874,1704814335625,-5593.4,0.00041506,30]
[310910875,1704814335635,-2579.3,0.00041506,30]
[310910876,1704814335645,-500.0,0.00041506,30]
[310910877,1704814335655,-831.97,0.00041506,30]
[310910878,1704814335664,-500.0,0.00041506,30]
[310910879,1704814335673,-30439.38,0.00041506,30]
[310910880,1704814335683,-500.0,0.00041506,30]
[310910881,1704814335694,-3381.6,0.00041506,30]
[310910882,1704814335703,-2158.92,0.00041506,30]
[310910883,1704814335712,-500.0,0.00041506,30]
[310910884,1704814335722,-3472.05,0.00041506,30]
[310910885,1704814335732,-3977.49,0.00041506,30]
[310910886,1704814335742,-3410.32,0.00041506,30]
[310910887,1704814335752,-500.0,0.00041506,30]
[310910888,1704814335762,-3128.49,0.00041506,30]
[310910889,1704814335771,-500.0,0.00041506,30]
[310910890,1704814335781,-10635.21,0.00041506,30]
[310910891,1704814335791,-663.76,0.00041506,30]
[310910892,1704814335800,-24039.48,0.00041506,30]
[310910893,1704814335810,-500.0,0.00041506,30]
[310910894,1704814335821,-500.0,0.00041506,30]
[310910895,1704814335831,-3985.89,0.00041506,30]
[310910896,1704814335841,-2042.98,0.00041506,30]
[310910897,1704814335851,-963.6,0.00041506,30]
[310910898,1704814335860,-666.14,0.00041506,30]
[310910899,1704814335871,-556.97,0.00041506,30]
[310910900,1704814335881,-8775.01,0.00041506,30]
[310910901,1704814335890,-1309.81,0.00041506,30]
[310910902,1704814335900,-500.0,0.00041506,30]
[310910903,1704814335909,-2400.49,0.00041506,30]
[310910904,1704814335919,-566.11,0.00041506,30]
[310910905,1704814335928,-2978.02,0.00041506,30]
[310910906,1704814335937,-4562.41,0.00041506,30]
[310910907,1704814335947,-12849.89,0.00041506,30]
[310910908,1704814335957,-4825.39,0.00041506,30]
[310910909,1704814335966,-500.0,0.00041506,30]
[310910910,1704814335976,-2107.23,0.00041506,30]
[310910911,1704814335986,-1467.66,0.00041506,30]
[310910912,1704814335995,-1188.47,0.00041506,30]
[310910913,1704814336005,-500.0,0.00041506,30]
[310910914,1704814336015,-500.0,0.00041506,30]
[310910915,1704814336024,-11369.64,0.00041506,30]
[310910916,1704814336034,-500.0,0.00041506,7]
[310910917,1704814336044,-2592.28,0.00041506,30]
[310910918,1704814336054,-566.95,0.00041506,30]
[310910919,1704814336063,-520.31,0.00041506,30]
[310910920,1704814336073,-13217.82,0.00041506,30]
[310910921,1704814336084,-500.0,0.00041506,30]
[310910922,1704814336094,-866.47,0.00041506,30]
[310910923,1704814336104,-500.0,0.00041506,30]
[310910924,1704814336113,-1308.82,0.00041506,30]
[310910925,1704814336122,-3181.95,0.00041506,30]
[310910926,1704814336132,-1243.26,0.00041506,30]
[310910927,1704814336141,-3734.08,0.00041506,30]
[310910928,1704814336151,-500.0,0.00041506,30]
[310910929,1704814336161,-1766.64,0.00041506,30]
[310910930,1704814336171,-3615.8,0.00041506,30]
[310910931,1704814336180,-500.0,0.00041506,30]